[Event "Live Chess"]
[Site "Chess.com"]
[Date "2023.05.21"]
[Round "-"]
[White "LiamClery2020"]
[Black "AbilifyXL"]
[Result "0-1"]
[WhiteElo "1995"]
[BlackElo "1947"]
[TimeControl "300"]
[EndTime "2:29:41 PDT"]
[Termination "AbilifyXL won by resignation"]

1. e4 {[%clk 0:04:59.1]} 1... d5 {[%clk 0:04:58.5]} 2. exd5 {[%clk 0:04:58]}
2... Qxd5 {[%clk 0:04:57.8]} 3. Nc3 {[%clk 0:04:57.2]} 3... Qa5 {[%clk
0:04:52.4]} 4. d4 {[%clk 0:04:55.5]} 4... c6 {[%clk 0:04:51.7]} 5. Bc4 {[%clk
0:04:51.9]} 5... Nf6 {[%clk 0:04:50.7]} 6. Nf3 {[%clk 0:04:50.9]} 6... Bg4
{[%clk 0:04:49.4]} 7. Bd2 {[%clk 0:04:47.8]} 7... e6 {[%clk 0:04:46.9]} 8. O-O
{[%clk 0:04:46.3]} 8... Nbd7 {[%clk 0:04:45.9]} 9. h3 {[%clk 0:04:44.6]} 9...
Bh5 {[%clk 0:04:44.8]} 10. Re1 {[%clk 0:04:35.7]} 10... Bb4 {[%clk 0:04:34.9]}
11. a3 {[%clk 0:04:34.1]} 11... Bxc3 {[%clk 0:04:32.4]} 12. Bxc3 {[%clk
0:04:34]} 12... Qc7 {[%clk 0:04:31.6]} 13. Qd3 {[%clk 0:04:27.8]} 13... O-O
{[%clk 0:04:30.4]} 14. Rad1 {[%clk 0:04:22.6]} 14... Rad8 {[%clk 0:04:29.2]} 15.
Qe3 {[%clk 0:04:21]} 15... Nb6 {[%clk 0:04:25.8]} 16. Ba2 {[%clk 0:04:19.6]}
16... Nbd5 {[%clk 0:04:24.6]} 17. Qd3 {[%clk 0:04:18.1]} 17... Bg6 {[%clk
0:04:21.2]} 18. Qd2 {[%clk 0:04:15]} 18... Ne4 {[%clk 0:04:17.5]} 19. Qg5 {[%clk
0:04:08.4]} 19... Nxg5 {[%clk 0:04:12.1]} 0-1

[Event "Live Chess"]
[Site "Chess.com"]
[Date "2023.05.21"]
[Round "-"]
[White "MJMykh"]
[Black "NatashaRegan"]
[Result "1-0"]
[WhiteElo "1184"]
[BlackElo "1736"]
[TimeControl "300"]
[EndTime "2:29:43 PDT"]
[Termination "MJMykh won by resignation"]

1. e4 {[%clk 0:04:58.3]} 1... Nf6 {[%clk 0:04:57.6]} 2. Nc3 {[%clk 0:04:55.9]}
2... e5 {[%clk 0:04:55.3]} 3. Nf3 {[%clk 0:04:54.6]} 3... Nc6 {[%clk 0:04:52.6]}
4. Bc4 {[%clk 0:04:53.2]} 4... Be7 {[%clk 0:04:48.4]} 5. Ng5 {[%clk 0:04:51.2]}
5... O-O {[%clk 0:04:45.4]} 6. Nxf7 {[%clk 0:04:51]} 6... Rxf7 {[%clk
0:04:42.7]} 7. Bxf7+ {[%clk 0:04:50.6]} 7... Kxf7 {[%clk 0:04:41.9]} 8. O-O
{[%clk 0:04:50.5]} 8... d6 {[%clk 0:04:30]} 9. h3 {[%clk 0:04:47.5]} 9... Kg8
{[%clk 0:04:25.6]} 10. a3 {[%clk 0:04:46.9]} 10... Be6 {[%clk 0:04:23.2]} 11. d3
{[%clk 0:04:45.9]} 11... Qd7 {[%clk 0:04:21.3]} 12. Be3 {[%clk 0:04:45.4]} 12...
Rf8 {[%clk 0:04:13.7]} 13. Qd2 {[%clk 0:04:42.1]} 13... Bxh3 {[%clk 0:04:08.8]}
14. gxh3 {[%clk 0:04:40.1]} 14... Qxh3 {[%clk 0:04:07.2]} 15. Qe2 {[%clk
0:04:37.1]} 15... Ng4 {[%clk 0:04:04.7]} 16. f3 {[%clk 0:04:33.1]} 16... Nxe3
{[%clk 0:03:47.8]} 17. Qxe3 {[%clk 0:04:31]} 17... Nd4 {[%clk 0:03:46.1]} 18.
Qd2 {[%clk 0:04:28.2]} 18... Rxf3 {[%clk 0:03:38.3]} 19. Qh2 {[%clk 0:04:06.6]}
19... Rg3+ {[%clk 0:03:30.4]} 20. Kh1 {[%clk 0:04:03.5]} 20... Qg4 {[%clk
0:03:17.9]} 21. Rg1 {[%clk 0:03:57.8]} 21... Qf4 {[%clk 0:03:11.7]} 22. Qxg3
{[%clk 0:03:50.7]} 22... Qxg3 {[%clk 0:03:03.5]} 23. Rxg3 {[%clk 0:03:46.2]}
23... Nxc2 {[%clk 0:03:00.8]} 24. Rag1 {[%clk 0:03:43.4]} 24... Bf6 {[%clk
0:02:58.1]} 25. Nd5 {[%clk 0:03:39.2]} 25... Kf7 {[%clk 0:02:54.2]} 26. Nxf6
{[%clk 0:03:36.8]} 26... gxf6 {[%clk 0:02:51.7]} 27. Rg7+ {[%clk 0:03:35.3]}
27... Ke6 {[%clk 0:02:50.6]} 28. Rxh7 {[%clk 0:03:33.8]} 1-0

[Event "Live Chess"]
[Site "Chess.com"]
[Date "2023.05.21"]
[Round "-"]
[White "JoshMcK"]
[Black "gmnorfolk"]
[Result "0-1"]
[WhiteElo "1523"]
[BlackElo "2129"]
[TimeControl "300"]
[EndTime "2:29:54 PDT"]
[Termination "gmnorfolk won by resignation"]

1. e4 {[%clk 0:04:58.8]} 1... c5 {[%clk 0:04:58.4]} 2. c3 {[%clk 0:04:57.4]}
2... d5 {[%clk 0:04:56.8]} 3. exd5 {[%clk 0:04:56]} 3... Nf6 {[%clk 0:04:55.2]}
4. Nf3 {[%clk 0:04:54.5]} 4... Nxd5 {[%clk 0:04:52.1]} 5. d4 {[%clk 0:04:53.6]}
5... cxd4 {[%clk 0:04:48.3]} 6. cxd4 {[%clk 0:04:48.2]} 6... g6 {[%clk
0:04:46.5]} 7. Nc3 {[%clk 0:04:46.7]} 7... Bg7 {[%clk 0:04:45.1]} 8. Nxd5 {[%clk
0:04:39]} 8... Qxd5 {[%clk 0:04:43.3]} 9. Be3 {[%clk 0:04:38.5]} 9... Nc6 {[%clk
0:04:37.9]} 10. Be2 {[%clk 0:04:25.1]} 10... Bf5 {[%clk 0:04:34.5]} 11. O-O
{[%clk 0:04:23.1]} 11... O-O {[%clk 0:04:32.9]} 12. b3 {[%clk 0:04:10.5]} 12...
b5 {[%clk 0:04:17.2]} 13. Rc1 {[%clk 0:04:04.7]} 13... a6 {[%clk 0:04:12]} 14.
Qd2 {[%clk 0:03:40.1]} 14... Rfd8 {[%clk 0:04:02.7]} 15. Rfd1 {[%clk 0:03:35.9]}
15... Rac8 {[%clk 0:03:56.3]} 16. h3 {[%clk 0:03:15.3]} 16... Qd6 {[%clk
0:03:27.1]} 17. a4 {[%clk 0:02:55.8]} 17... bxa4 {[%clk 0:03:22.1]} 18. bxa4
{[%clk 0:02:55.7]} 18... Nb4 {[%clk 0:03:18.3]} 19. Rxc8 {[%clk 0:02:38.9]}
19... Rxc8 {[%clk 0:03:14.1]} 20. Bf4 {[%clk 0:02:31.5]} 20... Qb6 {[%clk
0:03:07.5]} 21. Be5 {[%clk 0:02:23.8]} 21... f6 {[%clk 0:03:01.9]} 22. Bg3
{[%clk 0:02:20]} 22... Rc2 {[%clk 0:02:41.2]} 23. Qe3 {[%clk 0:02:13.7]} 23...
Nd5 {[%clk 0:02:38.7]} 24. Qa3 {[%clk 0:02:02.9]} 24... Rxe2 {[%clk 0:02:34.3]}
25. Nd2 {[%clk 0:01:50.2]} 25... Bc2 {[%clk 0:02:19.9]} 26. Nc4 {[%clk
0:01:45.6]} 26... Qb4 {[%clk 0:02:09.9]} 27. Qxb4 {[%clk 0:01:41.7]} 27... Nxb4
{[%clk 0:02:08.5]} 28. Rc1 {[%clk 0:01:41.3]} 28... Kf7 {[%clk 0:01:56.4]} 29.
Ne3 {[%clk 0:01:36.6]} 29... Bxa4 {[%clk 0:01:52.3]} 30. Kf1 {[%clk 0:01:31.1]}
30... Rb2 {[%clk 0:01:46]} 31. Ra1 {[%clk 0:01:24.9]} 31... Ra2 {[%clk
0:01:42.6]} 32. Rxa2 {[%clk 0:01:22.6]} 32... Nxa2 {[%clk 0:01:41.5]} 33. Nc4
{[%clk 0:01:18.8]} 33... Bb3 {[%clk 0:01:37.3]} 34. Na5 {[%clk 0:01:16.1]} 34...
Bd5 {[%clk 0:01:30.9]} 0-1

[Event "Live Chess"]
[Site "Chess.com"]
[Date "2023.05.21"]
[Round "-"]
[White "Keithdfg"]
[Black "Singapourfeuj"]
[Result "0-1"]
[WhiteElo "1580"]
[BlackElo "2193"]
[TimeControl "300"]
[EndTime "2:30:03 PDT"]
[Termination "Singapourfeuj won by resignation"]

1. c4 {[%clk 0:04:46.9]} 1... Nf6 {[%clk 0:04:58.7]} 2. Nc3 {[%clk 0:04:39.6]}
2... g6 {[%clk 0:04:57.7]} 3. g3 {[%clk 0:04:35.6]} 3... Bg7 {[%clk 0:04:56.6]}
4. Bg2 {[%clk 0:04:34.4]} 4... d6 {[%clk 0:04:55.8]} 5. Nf3 {[%clk 0:04:32.9]}
5... O-O {[%clk 0:04:54.9]} 6. O-O {[%clk 0:04:31.5]} 6... Nc6 {[%clk
0:04:53.6]} 7. d3 {[%clk 0:04:30.3]} 7... Bd7 {[%clk 0:04:52.5]} 8. Rb1 {[%clk
0:04:29.2]} 8... e5 {[%clk 0:04:50.4]} 9. b4 {[%clk 0:04:28]} 9... a6 {[%clk
0:04:49.2]} 10. a4 {[%clk 0:04:26.6]} 10... Rb8 {[%clk 0:04:42]} 11. b5 {[%clk
0:04:25.1]} 11... Nd4 {[%clk 0:04:40.9]} 12. Bg5 {[%clk 0:04:19.1]} 12... axb5
{[%clk 0:04:37.8]} 13. Nxd4 {[%clk 0:04:15.9]} 13... exd4 {[%clk 0:04:35]} 14.
Nd5 {[%clk 0:04:12.5]} 14... bxc4 {[%clk 0:04:30]} 0-1

[Event "Live Chess"]
[Site "Chess.com"]
[Date "2023.05.21"]
[Round "-"]
[White "Doge_Dandolo"]
[Black "OceanFloater"]
[Result "1-0"]
[WhiteElo "1864"]
[BlackElo "1033"]
[TimeControl "300"]
[EndTime "2:30:07 PDT"]
[Termination "Doge_Dandolo won by resignation"]

1. Nf3 {[%clk 0:04:57.1]} 1... c6 {[%clk 0:04:58.8]} 2. c4 {[%clk 0:04:55.7]}
2... d5 {[%clk 0:04:57.5]} 3. g3 {[%clk 0:04:53.4]} 3... Bf5 {[%clk 0:04:53.5]}
4. Qb3 {[%clk 0:04:37.4]} 4... Qc7 {[%clk 0:04:39.9]} 5. cxd5 {[%clk 0:04:28.8]}
5... cxd5 {[%clk 0:04:36.8]} 6. Nc3 {[%clk 0:04:26.8]} 6... Nf6 {[%clk
0:04:31.7]} 7. Bg2 {[%clk 0:04:24.3]} 7... e6 {[%clk 0:04:29.8]} 8. O-O {[%clk
0:04:23.2]} 8... a5 {[%clk 0:04:26.2]} 9. d4 {[%clk 0:04:22.2]} 9... a4 {[%clk
0:04:25]} 10. Qb5+ {[%clk 0:04:19.3]} 10... Nc6 {[%clk 0:04:22]} 11. Bf4 {[%clk
0:04:17.8]} 11... Ra5 {[%clk 0:04:19.9]} 12. Bxc7 {[%clk 0:04:14.9]} 12... Rxb5
{[%clk 0:04:18.7]} 13. Nxb5 {[%clk 0:04:13.9]} 13... e5 {[%clk 0:04:02.1]} 14.
dxe5 {[%clk 0:04:11.2]} 14... Ne4 {[%clk 0:03:59.9]} 15. Rfd1 {[%clk 0:04:03.6]}
15... Nxf2 {[%clk 0:03:49.8]} 16. Kxf2 {[%clk 0:04:00.4]} 16... Bc5+ {[%clk
0:03:49.3]} 17. e3 {[%clk 0:03:57]} 17... d4 {[%clk 0:03:47.1]} 18. exd4 {[%clk
0:03:51.7]} 18... Bxd4+ {[%clk 0:03:43.9]} 19. Nfxd4 {[%clk 0:03:46.6]} 19...
Nxd4 {[%clk 0:03:42.5]} 20. Rxd4 {[%clk 0:03:44]} 20... O-O {[%clk 0:03:40.8]}
21. Rd8 {[%clk 0:03:42.3]} 21... Rxd8 {[%clk 0:03:38.6]} 22. Bxd8 {[%clk
0:03:41.2]} 22... f6 {[%clk 0:03:36.3]} 23. e6 {[%clk 0:03:36.8]} 23... Bxe6
{[%clk 0:03:34.5]} 24. Bxb7 {[%clk 0:03:34.8]} 24... Kf7 {[%clk 0:03:33]} 25.
Re1 {[%clk 0:03:28.8]} 25... Bd7 {[%clk 0:03:31.5]} 26. Re7+ {[%clk 0:03:26.3]}
26... Kg6 {[%clk 0:03:30.4]} 1-0

[Event "Live Chess"]
[Site "Chess.com"]
[Date "2023.05.21"]
[Round "-"]
[White "FMOlexandrProhorov"]
[Black "jagbama"]
[Result "1-0"]
[WhiteElo "2172"]
[BlackElo "1163"]
[TimeControl "300"]
[EndTime "2:30:10 PDT"]
[Termination "FMOlexandrProhorov won by resignation"]

1. e4 {[%clk 0:04:54.4]} 1... e5 {[%clk 0:04:58.6]} 2. f4 {[%clk 0:04:52.8]}
2... d6 {[%clk 0:04:53]} 3. Bc4 {[%clk 0:04:52.4]} 3... Nf6 {[%clk 0:04:46.7]}
4. Nf3 {[%clk 0:04:52.3]} 4... Nc6 {[%clk 0:04:44.3]} 5. O-O {[%clk 0:04:51.2]}
5... Bg4 {[%clk 0:04:39]} 6. Nc3 {[%clk 0:04:49.8]} 6... Nd4 {[%clk 0:04:32.4]}
7. d3 {[%clk 0:04:47.4]} 7... Nxf3+ {[%clk 0:04:28]} 8. gxf3 {[%clk 0:04:47.3]}
8... Bh3 {[%clk 0:04:26.8]} 9. Rf2 {[%clk 0:04:45]} 9... Nh5 {[%clk 0:04:21.8]}
10. d4 {[%clk 0:04:34.5]} 10... Nxf4 {[%clk 0:04:17.9]} 11. Bxf4 {[%clk
0:04:33.6]} 11... exf4 {[%clk 0:04:16.4]} 12. e5 {[%clk 0:04:31]} 12... Qg5+
{[%clk 0:04:05.7]} 13. Kh1 {[%clk 0:04:29.1]} 13... dxe5 {[%clk 0:03:54.7]} 14.
dxe5 {[%clk 0:04:25.4]} 14... Bc5 {[%clk 0:03:53]} 15. Re2 {[%clk 0:04:12.3]}
15... O-O {[%clk 0:03:23.2]} 16. Ne4 {[%clk 0:04:08.7]} 16... Qe7 {[%clk
0:03:19.1]} 17. Qe1 {[%clk 0:04:08.1]} 17... Be3 {[%clk 0:03:08.7]} 18. Rxe3
{[%clk 0:04:02.6]} 18... fxe3 {[%clk 0:03:06.4]} 19. Qxe3 {[%clk 0:04:02.5]}
19... Qb4 {[%clk 0:02:40.6]} 20. Bd3 {[%clk 0:03:57.4]} 20... Qxb2 {[%clk
0:02:36.3]} 21. Rg1 {[%clk 0:03:55]} 21... Rad8 {[%clk 0:02:13.2]} 22. Qh6
{[%clk 0:03:44]} 22... g6 {[%clk 0:01:38.3]} 23. Nf6+ {[%clk 0:03:41.5]} 1-0

[Event "Live Chess"]
[Site "Chess.com"]
[Date "2023.05.21"]
[Round "-"]
[White "yeetpizza74"]
[Black "WilliamofOrange16th"]
[Result "0-1"]
[WhiteElo "481"]
[BlackElo "1843"]
[TimeControl "300"]
[EndTime "2:30:14 PDT"]
[Termination "WilliamofOrange16th won by checkmate"]

1. e4 {[%clk 0:04:56]} 1... c5 {[%clk 0:04:57.1]} 2. Nf3 {[%clk 0:04:53.3]} 2...
e6 {[%clk 0:04:56.5]} 3. d4 {[%clk 0:04:50.9]} 3... cxd4 {[%clk 0:04:56.4]} 4.
Nxd4 {[%clk 0:04:49.3]} 4... a6 {[%clk 0:04:56]} 5. Bc4 {[%clk 0:04:46]} 5...
Qc7 {[%clk 0:04:55.2]} 6. Nd2 {[%clk 0:04:42]} 6... Nf6 {[%clk 0:04:53.3]} 7. f3
{[%clk 0:04:35.9]} 7... d5 {[%clk 0:04:49.3]} 8. exd5 {[%clk 0:04:34]} 8... exd5
{[%clk 0:04:48.5]} 9. Bd3 {[%clk 0:04:26.7]} 9... Be7 {[%clk 0:04:46.4]} 10. O-O
{[%clk 0:04:24.9]} 10... O-O {[%clk 0:04:45.3]} 11. Re1 {[%clk 0:04:22.5]} 11...
Bc5 {[%clk 0:04:44.2]} 12. c3 {[%clk 0:04:17.1]} 12... Nc6 {[%clk 0:04:42.3]}
13. Nb3 {[%clk 0:04:09.7]} 13... Nxd4 {[%clk 0:04:41.2]} 14. cxd4 {[%clk
0:04:08.2]} 14... Bd6 {[%clk 0:04:39.3]} 15. g3 {[%clk 0:03:58.6]} 15... Bh3
{[%clk 0:04:37.6]} 16. Bf4 {[%clk 0:03:55.9]} 16... Bxf4 {[%clk 0:04:34.5]} 17.
gxf4 {[%clk 0:03:53.6]} 17... Qxf4 {[%clk 0:04:34.4]} 18. Nc5 {[%clk 0:03:41.6]}
18... Qg5+ {[%clk 0:04:29.8]} 19. Kf2 {[%clk 0:03:37.4]} 19... Qg2+ {[%clk
0:04:18.7]} 20. Ke3 {[%clk 0:03:33.8]} 20... Rfe8+ {[%clk 0:04:16.9]} 21. Kf4
{[%clk 0:03:29.7]} 21... g5# {[%clk 0:04:13.1]} 0-1

[Event "Live Chess"]
[Site "Chess.com"]
[Date "2023.05.21"]
[Round "-"]
[White "LiamBellwood"]
[Black "domrobson"]
[Result "1/2-1/2"]
[WhiteElo "1960"]
[BlackElo "1717"]
[TimeControl "300"]
[EndTime "2:30:25 PDT"]
[Termination "Game drawn by repetition"]

1. d4 {[%clk 0:04:59.5]} 1... Nf6 {[%clk 0:04:58.7]} 2. Nc3 {[%clk 0:04:56.6]}
2... e6 {[%clk 0:04:56.3]} 3. Bf4 {[%clk 0:04:56.3]} 3... d5 {[%clk 0:04:54.5]}
4. Nb5 {[%clk 0:04:55.4]} 4... Na6 {[%clk 0:04:52.9]} 5. a3 {[%clk 0:04:54.8]}
5... Bd7 {[%clk 0:04:49.7]} 6. e3 {[%clk 0:04:53.4]} 6... Bxb5 {[%clk
0:04:45.2]} 7. Bxb5+ {[%clk 0:04:52.2]} 7... c6 {[%clk 0:04:44.9]} 8. Bd3 {[%clk
0:04:50.8]} 8... Bd6 {[%clk 0:04:40.5]} 9. Ne2 {[%clk 0:04:46.7]} 9... Nc7
{[%clk 0:04:36.3]} 10. O-O {[%clk 0:04:42.1]} 10... O-O {[%clk 0:04:34.8]} 11.
Bxd6 {[%clk 0:04:40.9]} 11... Qxd6 {[%clk 0:04:33.3]} 12. f3 {[%clk 0:04:40.8]}
12... e5 {[%clk 0:04:31.1]} 13. c3 {[%clk 0:04:27.7]} 13... exd4 {[%clk
0:04:25.6]} 14. exd4 {[%clk 0:04:19.2]} 14... Rfe8 {[%clk 0:04:23.7]} 15. Qd2
{[%clk 0:04:16.4]} 15... Re7 {[%clk 0:04:17.4]} 16. Ng3 {[%clk 0:04:08]} 16...
g6 {[%clk 0:04:03.5]} 17. Rfe1 {[%clk 0:04:03.7]} 17... Rae8 {[%clk 0:04:01.4]}
18. Rxe7 {[%clk 0:04:02.1]} 18... Qxe7 {[%clk 0:03:57.7]} 19. Kf2 {[%clk
0:04:00.2]} 19... Qd7 {[%clk 0:03:46.7]} 20. Qg5 {[%clk 0:03:55.1]} 20... Qe6
{[%clk 0:03:38.4]} 21. Bf5 {[%clk 0:03:43.1]} 21... Qe7 {[%clk 0:03:36]} 22. Bd3
{[%clk 0:03:35.1]} 22... Ne6 {[%clk 0:03:31.5]} 23. Qh6 {[%clk 0:03:24.5]} 23...
Ng7 {[%clk 0:03:26.3]} 24. Qd2 {[%clk 0:02:52.4]} 24... a6 {[%clk 0:03:21.3]}
25. Re1 {[%clk 0:02:50.3]} 25... Qxe1+ {[%clk 0:03:19.1]} 26. Qxe1 {[%clk
0:02:50.2]} 26... Rxe1 {[%clk 0:03:17.4]} 27. Kxe1 {[%clk 0:02:50.1]} 27... b5
{[%clk 0:03:15.9]} 28. a4 {[%clk 0:02:47.6]} 28... Nd7 {[%clk 0:03:11.4]} 29. a5
{[%clk 0:02:43]} 29... f5 {[%clk 0:03:02.6]} 30. b4 {[%clk 0:02:41.4]} 30... Nf6
{[%clk 0:02:49.2]} 31. Bc2 {[%clk 0:02:31.8]} 31... Ngh5 {[%clk 0:02:46.2]} 32.
Nh1 {[%clk 0:02:27.7]} 32... Nf4 {[%clk 0:02:42.4]} 33. g3 {[%clk 0:02:22.6]}
33... Ne6 {[%clk 0:02:38.7]} 34. Nf2 {[%clk 0:02:21.4]} 34... Kf7 {[%clk
0:02:35.1]} 35. Nd3 {[%clk 0:02:20.7]} 35... Nd7 {[%clk 0:02:32.3]} 36. Kf2
{[%clk 0:02:17.1]} 36... Kf6 {[%clk 0:02:31]} 37. h3 {[%clk 0:02:14.4]} 37... h5
{[%clk 0:02:29.9]} 38. g4 {[%clk 0:02:10]} 38... hxg4 {[%clk 0:02:28.3]} 39.
fxg4 {[%clk 0:02:09.9]} 39... fxg4 {[%clk 0:02:27]} 40. hxg4 {[%clk 0:02:09.8]}
40... Kg5 {[%clk 0:02:24.5]} 41. Kg3 {[%clk 0:02:09.1]} 41... Kf6 {[%clk
0:02:18.1]} 42. Nf4 {[%clk 0:01:58.8]} 42... Nxf4 {[%clk 0:02:14.4]} 43. Kxf4
{[%clk 0:01:58.7]} 43... g5+ {[%clk 0:02:13.5]} 44. Kf3 {[%clk 0:01:51.6]} 44...
Nf8 {[%clk 0:02:07.5]} 45. Bf5 {[%clk 0:01:50.5]} 45... Ne6 {[%clk 0:02:03.9]}
46. Ke3 {[%clk 0:01:49.6]} 46... Ke7 {[%clk 0:02:00.4]} 47. Kf3 {[%clk
0:01:44.8]} 47... Kd6 {[%clk 0:01:58.2]} 48. Bg6 {[%clk 0:01:41.1]} 48... Nf4
{[%clk 0:01:53.4]} 49. Be8 {[%clk 0:01:33.9]} 49... Nd3 {[%clk 0:01:47.2]} 50.
Bh5 {[%clk 0:01:26.7]} 50... Nc1 {[%clk 0:01:41.8]} 51. Ke3 {[%clk 0:01:23.9]}
51... Na2 {[%clk 0:01:35.2]} 52. Kd2 {[%clk 0:01:20.8]} 52... Kc7 {[%clk
0:01:30]} 53. Kc2 {[%clk 0:01:20]} 53... Kb7 {[%clk 0:01:22.9]} 54. Kb2 {[%clk
0:01:19.2]} 54... Nxb4 {[%clk 0:01:21.9]} 55. cxb4 {[%clk 0:01:19.1]} 55... Kc7
{[%clk 0:01:21.1]} 56. Kc3 {[%clk 0:01:16]} 56... Kb7 {[%clk 0:01:20.5]} 57. Bf7
{[%clk 0:01:12.3]} 57... Kc7 {[%clk 0:01:19.9]} 58. Be6 {[%clk 0:01:09.9]} 58...
Kb7 {[%clk 0:01:15.5]} 59. Bf7 {[%clk 0:01:02.7]} 59... Kc7 {[%clk 0:01:14.6]}
60. Be8 {[%clk 0:01:01.5]} 60... Kb7 {[%clk 0:01:13.8]} 61. Kd3 {[%clk
0:00:54.4]} 61... Kc7 {[%clk 0:01:13.4]} 62. Ke3 {[%clk 0:00:54.3]} 62... Kb7
{[%clk 0:01:12.2]} 63. Kf3 {[%clk 0:00:53.5]} 63... Kc7 {[%clk 0:01:11.9]} 64.
Kg3 {[%clk 0:00:52.7]} 64... Kb7 {[%clk 0:01:11.4]} 65. Bf7 {[%clk 0:00:46.3]}
65... Kc7 {[%clk 0:01:10.8]} 66. Be6 {[%clk 0:00:45.8]} 66... Kb7 {[%clk
0:01:09.8]} 67. Bf5 {[%clk 0:00:45.7]} 67... Kc7 {[%clk 0:01:09.1]} 68. Bg6
{[%clk 0:00:45]} 68... Kb7 {[%clk 0:01:08.6]} 69. Be4 {[%clk 0:00:36.1]} 69...
Kc7 {[%clk 0:00:57.5]} 70. Kf2 {[%clk 0:00:35.6]} 70... Kb7 {[%clk 0:00:53.8]}
71. Ke3 {[%clk 0:00:34.9]} 71... Kc7 {[%clk 0:00:53]} 72. Bf5 {[%clk 0:00:26.7]}
72... Kb7 {[%clk 0:00:52]} 73. Bd7 {[%clk 0:00:26.4]} 73... Kc7 {[%clk
0:00:51.6]} 74. Be8 {[%clk 0:00:25.8]} 74... Kb7 {[%clk 0:00:50.7]} 75. Bf7
{[%clk 0:00:24.1]} 75... Kc7 {[%clk 0:00:50.3]} 76. Be6 {[%clk 0:00:24]} 76...
Kb7 {[%clk 0:00:49.4]} 77. Bf5 {[%clk 0:00:23.9]} 77... Kc7 {[%clk 0:00:49]} 78.
Bg6 {[%clk 0:00:23.3]} 78... Kb7 {[%clk 0:00:48.7]} 79. Bf7 {[%clk 0:00:23.2]}
79... Kc7 {[%clk 0:00:48.2]} 80. Bg8 {[%clk 0:00:23]} 80... Kb7 {[%clk
0:00:47.8]} 81. Bf7 {[%clk 0:00:22.6]} 1/2-1/2

[Event "Live Chess"]
[Site "Chess.com"]
[Date "2023.05.21"]
[Round "-"]
[White "Mugzwang"]
[Black "hturner40"]
[Result "0-1"]
[WhiteElo "1540"]
[BlackElo "1802"]
[TimeControl "300"]
[EndTime "2:30:30 PDT"]
[Termination "hturner40 won by resignation"]

1. Nf3 {[%clk 0:04:57.2]} 1... g6 {[%clk 0:04:57.8]} 2. Nc3 {[%clk 0:04:52.5]}
2... Bg7 {[%clk 0:04:56.2]} 3. b3 {[%clk 0:04:51.9]} 3... e5 {[%clk 0:04:52.2]}
4. d3 {[%clk 0:04:45.5]} 4... d5 {[%clk 0:04:50.7]} 5. Bb2 {[%clk 0:04:43.4]}
5... c5 {[%clk 0:04:44.5]} 6. e4 {[%clk 0:04:31.6]} 6... d4 {[%clk 0:04:43.3]}
7. Nd5 {[%clk 0:04:30.3]} 7... Ne7 {[%clk 0:04:33]} 8. Nxe7 {[%clk 0:04:25.3]}
8... Qxe7 {[%clk 0:04:26.4]} 9. c3 {[%clk 0:04:18.8]} 9... O-O {[%clk
0:04:21.7]} 10. cxd4 {[%clk 0:04:17.6]} 10... cxd4 {[%clk 0:04:18.8]} 11. Qc1
{[%clk 0:04:14.7]} 11... Be6 {[%clk 0:04:12.5]} 12. Ba3 {[%clk 0:04:11.7]} 12...
Qd7 {[%clk 0:04:03.5]} 13. Bxf8 {[%clk 0:04:09.6]} 13... Kxf8 {[%clk 0:03:47.6]}
14. Be2 {[%clk 0:04:06.3]} 14... Nc6 {[%clk 0:03:41.7]} 15. O-O {[%clk
0:03:59.3]} 15... Rc8 {[%clk 0:03:39.9]} 16. Qc5+ {[%clk 0:03:51.8]} 16... Kg8
{[%clk 0:03:38.1]} 17. Rac1 {[%clk 0:03:40]} 17... Bf8 {[%clk 0:03:36]} 18. Qc2
{[%clk 0:03:26.9]} 18... Ba3 {[%clk 0:03:34.1]} 19. Rb1 {[%clk 0:03:17.7]} 19...
Nb4 {[%clk 0:03:30.9]} 20. Qd2 {[%clk 0:03:05]} 20... Rc2 {[%clk 0:03:18.9]} 21.
Qe1 {[%clk 0:02:37.7]} 21... f6 {[%clk 0:03:08.4]} 22. Bd1 {[%clk 0:02:17.2]}
22... Rxa2 {[%clk 0:02:59.7]} 23. Nd2 {[%clk 0:02:08.4]} 23... Nxd3 {[%clk
0:02:44.5]} 24. Qe2 {[%clk 0:02:00.9]} 24... Nf4 {[%clk 0:02:41.4]} 25. Qe1
{[%clk 0:01:49.3]} 25... Bb4 {[%clk 0:02:38.5]} 26. Be2 {[%clk 0:01:18.7]} 26...
Rxd2 {[%clk 0:02:11.2]} 27. Bc4 {[%clk 0:01:03.2]} 27... Bxc4 {[%clk 0:02:04.1]}
28. bxc4 {[%clk 0:01:01.3]} 28... Nd3 {[%clk 0:01:58.8]} 29. Rxb4 {[%clk
0:00:51.1]} 29... Nxe1 {[%clk 0:01:57]} 30. Rxe1 {[%clk 0:00:50.7]} 30... b6
{[%clk 0:01:49.1]} 31. Reb1 {[%clk 0:00:49]} 31... Qc6 {[%clk 0:01:37.7]} 32. f3
{[%clk 0:00:44.5]} 32... Rc2 {[%clk 0:01:35.6]} 33. c5 {[%clk 0:00:41.7]} 33...
Rxc5 {[%clk 0:01:33.5]} 34. Ra4 {[%clk 0:00:38.5]} 34... Rc1+ {[%clk 0:01:29.9]}
35. Rxc1 {[%clk 0:00:37.8]} 35... Qxc1+ {[%clk 0:01:28.3]} 36. Kf2 {[%clk
0:00:37.5]} 36... a5 {[%clk 0:01:25.2]} 37. Kg3 {[%clk 0:00:35.6]} 37... Qf4+
{[%clk 0:01:22.4]} 38. Kf2 {[%clk 0:00:33.2]} 38... Qe3+ {[%clk 0:01:20.2]} 39.
Kg3 {[%clk 0:00:32.3]} 39... d3 {[%clk 0:01:19.3]} 40. Rc4 {[%clk 0:00:29.9]}
40... d2 {[%clk 0:01:15.2]} 41. Rc8+ {[%clk 0:00:29.4]} 41... Kg7 {[%clk
0:01:13.4]} 42. Rd8 {[%clk 0:00:29]} 42... Qe1+ {[%clk 0:01:10.7]} 43. Kg4
{[%clk 0:00:27.1]} 43... d1=Q {[%clk 0:01:08.1]} 0-1

[Event "Live Chess"]
[Site "Chess.com"]
[Date "2023.05.21"]
[Round "-"]
[White "chessfiction"]
[Black "Rusty_Bridges"]
[Result "1-0"]
[WhiteElo "2334"]
[BlackElo "1514"]
[TimeControl "300"]
[EndTime "2:30:38 PDT"]
[Termination "chessfiction won by resignation"]

1. e4 {[%clk 0:04:58.7]} 1... d6 {[%clk 0:04:57.5]} 2. d4 {[%clk 0:04:58.6]}
2... Nf6 {[%clk 0:04:55.6]} 3. Nc3 {[%clk 0:04:58]} 3... Nbd7 {[%clk 0:04:54.2]}
4. Nf3 {[%clk 0:04:56.3]} 4... e5 {[%clk 0:04:53.1]} 5. Bc4 {[%clk 0:04:55.5]}
5... h6 {[%clk 0:04:51.4]} 6. O-O {[%clk 0:04:42.2]} 6... c6 {[%clk 0:04:48.7]}
7. h3 {[%clk 0:04:39.4]} 7... Qc7 {[%clk 0:04:47.5]} 8. Be3 {[%clk 0:04:37.3]}
8... Be7 {[%clk 0:04:46.4]} 9. Nh4 {[%clk 0:04:35.8]} 9... g6 {[%clk 0:04:44.7]}
10. Qf3 {[%clk 0:04:32.4]} 10... b5 {[%clk 0:04:40.1]} 11. Bb3 {[%clk
0:04:30.7]} 11... Bb7 {[%clk 0:04:34.2]} 12. d5 {[%clk 0:04:26.1]} 12... c5
{[%clk 0:04:29.2]} 13. Nxb5 {[%clk 0:04:24.4]} 13... Qb6 {[%clk 0:04:23.7]} 14.
c4 {[%clk 0:04:23]} 14... a6 {[%clk 0:04:20.5]} 15. Nc3 {[%clk 0:04:21.6]} 15...
O-O-O {[%clk 0:04:12.2]} 16. Na4 {[%clk 0:04:18.3]} 16... Qc7 {[%clk 0:04:10.1]}
17. Qe2 {[%clk 0:04:15.9]} 17... Nxe4 {[%clk 0:04:07.9]} 18. Nf3 {[%clk
0:04:12]} 18... Ng5 {[%clk 0:04:02.6]} 19. Nd2 {[%clk 0:04:10]} 19... Nf6 {[%clk
0:03:52]} 20. f4 {[%clk 0:04:08.4]} 20... Nge4 {[%clk 0:03:39.8]} 21. fxe5
{[%clk 0:04:05.9]} 21... dxe5 {[%clk 0:03:35.4]} 22. Nxe4 {[%clk 0:04:01.6]}
22... Nxe4 {[%clk 0:03:34]} 23. Rxf7 {[%clk 0:04:00.8]} 23... Rdf8 {[%clk
0:03:21.8]} 24. Rxf8+ {[%clk 0:03:55.2]} 24... Rxf8 {[%clk 0:03:19.9]} 25. Qg4+
{[%clk 0:03:54.8]} 25... Kb8 {[%clk 0:03:14.9]} 26. Qxe4 {[%clk 0:03:54.7]} 1-0